[Event "Early-Titled-Tuesday-Blitz-June-18-2024"]
[Site "Chess.com"]
[Date "2024.06.18"]
[Round "3"]
[White "Zq1"]
[Black "GMAkobianSTL"]
[Result "0-1"]
[WhiteElo "2514"]
[BlackElo "2827"]
[TimeControl "180+1"]
[EndTime "8:29:10 PDT"]
[Termination "GMAkobianSTL won by resignation"]

1. d4 {[%clk 0:03:00.9]} 1... e6 {[%clk 0:02:58.4]} 2. c4 {[%clk 0:03:00.8]}
2... f5 {[%clk 0:02:57.9]} 3. g3 {[%clk 0:02:59.2]} 3... Nf6 {[%clk 0:02:57.3]}
4. Bg2 {[%clk 0:02:59.2]} 4... d5 {[%clk 0:02:56.5]} 5. Nf3 {[%clk 0:02:52]}
5... c6 {[%clk 0:02:56]} 6. O-O {[%clk 0:02:50.2]} 6... Bd6 {[%clk 0:02:54.9]}
7. b3 {[%clk 0:02:49.6]} 7... Qe7 {[%clk 0:02:54.3]} 8. Bb2 {[%clk 0:02:49.2]}
8... O-O {[%clk 0:02:53.7]} 9. Qc1 {[%clk 0:02:48.9]} 9... Nbd7 {[%clk
0:02:51.6]} 10. Ba3 {[%clk 0:02:48.6]} 10... a5 {[%clk 0:02:49]} 11. Bxd6 {[%clk
0:02:47.7]} 11... Qxd6 {[%clk 0:02:46.4]} 12. Qa3 {[%clk 0:02:39.2]} 12... Qxa3
{[%clk 0:02:43.7]} 13. Nxa3 {[%clk 0:02:38.3]} 13... Ne4 {[%clk 0:02:43.8]} 14.
Rfc1 {[%clk 0:02:36.2]} 14... Kf7 {[%clk 0:02:42.4]} 15. Nc2 {[%clk 0:02:23.8]}
15... Ke7 {[%clk 0:02:41.3]} 16. Nce1 {[%clk 0:02:23.4]} 16... Ra7 {[%clk
0:02:05.9]} 17. Nd3 {[%clk 0:02:21.2]} 17... Rd8 {[%clk 0:02:01.8]} 18. e3
{[%clk 0:02:13.2]} 18... Ndf6 {[%clk 0:01:59.5]} 19. Nfe5 {[%clk 0:02:10.6]}
19... Bd7 {[%clk 0:01:56.9]} 20. f3 {[%clk 0:02:07.8]} 20... Nd6 {[%clk
0:01:56]} 21. a4 {[%clk 0:02:00.7]} 21... Be8 {[%clk 0:01:54.6]} 22. h3 {[%clk
0:01:58.9]} 22... Nf7 {[%clk 0:01:53.9]} 23. Kf2 {[%clk 0:01:56.2]} 23... Nxe5
{[%clk 0:01:53.5]} 24. Nxe5 {[%clk 0:01:55.8]} 24... Nd7 {[%clk 0:01:52.6]} 25.
Nd3 {[%clk 0:01:47.6]} 25... Nf6 {[%clk 0:01:48.8]} 26. g4 {[%clk 0:01:46.2]}
26... g5 {[%clk 0:01:39.7]} 27. Ne5 {[%clk 0:01:40.6]} 27... Nd7 {[%clk
0:01:39]} 28. Nd3 {[%clk 0:01:32.4]} 28... Bg6 {[%clk 0:01:37.7]} 29. Rd1 {[%clk
0:01:20.5]} 29... h5 {[%clk 0:01:33.5]} 30. Kg3 {[%clk 0:01:13.6]} 30... fxg4
{[%clk 0:01:29.6]} 31. hxg4 {[%clk 0:01:11.7]} 31... h4+ {[%clk 0:01:28]} 32.
Kf2 {[%clk 0:01:08.4]} 32... Bxd3 {[%clk 0:01:27.1]} 33. Rxd3 {[%clk 0:01:07.4]}
33... Ra6 {[%clk 0:01:14.4]} 34. e4 {[%clk 0:00:58.5]} 34... dxe4 {[%clk
0:01:09]} 35. fxe4 {[%clk 0:00:58.1]} 35... Ne5 {[%clk 0:01:06.8]} 36. Rd2
{[%clk 0:00:47.7]} 36... c5 {[%clk 0:01:06]} 37. Rad1 {[%clk 0:00:29.4]} 37...
cxd4 {[%clk 0:01:03.9]} 38. Rxd4 {[%clk 0:00:28.1]} 38... Rxd4 {[%clk
0:01:02.8]} 39. Rxd4 {[%clk 0:00:27.5]} 39... Rd6 {[%clk 0:01:01.1]} 40. Rxd6
{[%clk 0:00:13.5]} 40... Kxd6 {[%clk 0:01:00.7]} 41. Bh3 {[%clk 0:00:13.6]}
41... Nd3+ {[%clk 0:00:53.7]} 42. Ke3 {[%clk 0:00:12]} 42... Nc5 {[%clk
0:00:53.7]} 0-1

[Event "Early-Titled-Tuesday-Blitz-June-18-2024"]
[Site "Chess.com"]
[Date "2024.06.18"]
[Round "3"]
[White "NovozhilovSemen"]
[Black "BardArtem"]
[Result "1-0"]
[WhiteElo "2642"]
[BlackElo "2831"]
[TimeControl "180+1"]
[EndTime "8:29:11 PDT"]
[Termination "NovozhilovSemen won on time"]

1. d4 {[%clk 0:02:56.4]} 1... d5 {[%clk 0:02:58.6]} 2. c4 {[%clk 0:02:56]} 2...
e6 {[%clk 0:02:59.3]} 3. Nf3 {[%clk 0:02:56]} 3... Nf6 {[%clk 0:03:00.1]} 4. g3
{[%clk 0:02:56.1]} 4... Bd6 {[%clk 0:03:00.8]} 5. Bg2 {[%clk 0:02:56.2]} 5...
O-O {[%clk 0:03:01.6]} 6. O-O {[%clk 0:02:56.6]} 6... h6 {[%clk 0:03:02.4]} 7.
b3 {[%clk 0:02:54.2]} 7... Nc6 {[%clk 0:02:55.8]} 8. Nc3 {[%clk 0:02:52.3]} 8...
dxc4 {[%clk 0:02:53]} 9. bxc4 {[%clk 0:02:52.3]} 9... e5 {[%clk 0:02:53.7]} 10.
d5 {[%clk 0:02:50.3]} 10... Na5 {[%clk 0:02:52.2]} 11. Nd2 {[%clk 0:02:50.2]}
11... b6 {[%clk 0:02:52.2]} 12. Bb2 {[%clk 0:02:44.7]} 12... Re8 {[%clk
0:02:46.9]} 13. Qc2 {[%clk 0:02:41]} 13... Nb7 {[%clk 0:02:32.3]} 14. e4 {[%clk
0:02:27.5]} 14... Nc5 {[%clk 0:02:04.1]} 15. h3 {[%clk 0:02:26.9]} 15... Bd7
{[%clk 0:02:00.7]} 16. f4 {[%clk 0:02:24.3]} 16... Nh5 {[%clk 0:02:00]} 17. Ne2
{[%clk 0:02:12.2]} 17... exf4 {[%clk 0:01:50.8]} 18. gxf4 {[%clk 0:02:11.5]}
18... Qh4 {[%clk 0:01:51.1]} 19. e5 {[%clk 0:02:08.7]} 19... Bxh3 {[%clk
0:01:43.9]} 20. Nf3 {[%clk 0:01:47.3]} 20... Qg4 {[%clk 0:01:39.3]} 21. Ned4
{[%clk 0:01:46.9]} 21... Nxf4 {[%clk 0:01:32.8]} 22. Nh2 {[%clk 0:01:41.6]}
22... Qxg2+ {[%clk 0:01:28.6]} 23. Qxg2 {[%clk 0:01:41.2]} 23... Bxg2 {[%clk
0:01:22.6]} 24. Rxf4 {[%clk 0:01:25]} 24... Bxe5 {[%clk 0:01:22.7]} 25. Rf2
{[%clk 0:01:25.3]} 25... Nd3 {[%clk 0:01:19]} 26. Rxg2 {[%clk 0:01:15.2]} 26...
Nxb2 {[%clk 0:01:18.4]} 27. Nf5 {[%clk 0:01:14.7]} 27... Nxc4 {[%clk 0:01:13]}
28. Rf1 {[%clk 0:01:14]} 28... Kf8 {[%clk 0:01:00.2]} 29. Ng4 {[%clk 0:01:12.7]}
29... Nd6 {[%clk 0:00:46.2]} 30. Nxe5 {[%clk 0:01:02.9]} 30... Rxe5 {[%clk
0:00:47.1]} 31. Nxg7 {[%clk 0:01:03]} 31... Rxd5 {[%clk 0:00:38.3]} 32. Ne6+
{[%clk 0:01:01.6]} 32... Ke7 {[%clk 0:00:33.4]} 33. Nxc7 {[%clk 0:01:02.5]}
33... Rc5 {[%clk 0:00:24]} 34. Nxa8 {[%clk 0:00:59.8]} 34... Rc8 {[%clk
0:00:24.6]} 35. Re2+ {[%clk 0:00:59.1]} 35... Kf8 {[%clk 0:00:17.7]} 36. Re6
{[%clk 0:00:59.2]} 36... Ne8 {[%clk 0:00:04.4]} 37. Nxb6 {[%clk 0:00:59.6]}
37... axb6 {[%clk 0:00:04.2]} 38. Rxb6 {[%clk 0:01:00.5]} 38... Ra8 {[%clk
0:00:02.1]} 39. Rf2 {[%clk 0:01:00.5]} 39... Nc7 {[%clk 0:00:01.7]} 40. Rxh6
{[%clk 0:01:00]} 40... Kg7 {[%clk 0:00:01.6]} 41. Rhf6 {[%clk 0:00:59.3]} 41...
Rf8 {[%clk 0:00:01]} 42. R6f3 {[%clk 0:00:58.8]} 42... Ne6 {[%clk 0:00:01.3]}
43. Rg2+ {[%clk 0:00:59.2]} 1-0

[Event "Early-Titled-Tuesday-Blitz-June-18-2024"]
[Site "Chess.com"]
[Date "2024.06.18"]
[Round "3"]
[White "DuleMudule"]
[Black "GOGIEFF"]
[Result "0-1"]
[WhiteElo "2768"]
[BlackElo "3020"]
[TimeControl "180+1"]
[EndTime "8:29:16 PDT"]
[Termination "GOGIEFF won by resignation"]

1. d4 {[%clk 0:03:00.9]} 1... Nf6 {[%clk 0:02:59.4]} 2. Bg5 {[%clk 0:03:00.4]}
2... e6 {[%clk 0:02:59.4]} 3. e3 {[%clk 0:03:00.1]} 3... h6 {[%clk 0:02:58]} 4.
Bh4 {[%clk 0:02:59.8]} 4... c5 {[%clk 0:02:58.6]} 5. c3 {[%clk 0:02:59.5]} 5...
Qb6 {[%clk 0:02:55.7]} 6. Qc2 {[%clk 0:02:56.2]} 6... Nc6 {[%clk 0:02:55.8]} 7.
Nd2 {[%clk 0:02:56]} 7... d5 {[%clk 0:02:56]} 8. Ngf3 {[%clk 0:02:56.1]} 8...
Nh5 {[%clk 0:02:55.3]} 9. Be2 {[%clk 0:02:43.8]} 9... g5 {[%clk 0:02:55.2]} 10.
Bg3 {[%clk 0:02:43.6]} 10... Nxg3 {[%clk 0:02:54.6]} 11. hxg3 {[%clk 0:02:42.9]}
11... Bg7 {[%clk 0:02:54.9]} 12. dxc5 {[%clk 0:02:38.2]} 12... Qxc5 {[%clk
0:02:54.4]} 13. O-O {[%clk 0:02:38.3]} 13... O-O {[%clk 0:02:50.2]} 14. Rac1
{[%clk 0:02:31]} 14... e5 {[%clk 0:02:35.3]} 15. b4 {[%clk 0:02:25]} 15... Qe7
{[%clk 0:02:34.8]} 16. a3 {[%clk 0:02:21.1]} 16... Bg4 {[%clk 0:02:25.8]} 17.
Rfe1 {[%clk 0:02:16.6]} 17... Rac8 {[%clk 0:02:25]} 18. Qd1 {[%clk 0:02:04.1]}
18... Be6 {[%clk 0:02:10.8]} 19. c4 {[%clk 0:01:56.5]} 19... e4 {[%clk 0:02:11]}
20. cxd5 {[%clk 0:01:55.7]} 20... Bxd5 {[%clk 0:02:11.9]} 21. Nh2 {[%clk
0:01:55.6]} 21... Ne5 {[%clk 0:02:03.6]} 22. Rxc8 {[%clk 0:01:43.1]} 22... Rxc8
{[%clk 0:02:04.5]} 23. Nb3 {[%clk 0:01:43.1]} 23... Rd8 {[%clk 0:01:44.2]} 24.
Nd4 {[%clk 0:01:40.6]} 24... Nc6 {[%clk 0:01:26.8]} 25. Nf5 {[%clk 0:01:37.9]}
25... Qf6 {[%clk 0:01:26.1]} 26. g4 {[%clk 0:01:38.4]} 26... Be6 {[%clk
0:01:18.3]} 27. Qa4 {[%clk 0:01:37.6]} 27... Bxf5 {[%clk 0:01:16.9]} 28. gxf5
{[%clk 0:01:38.5]} 28... Qxf5 {[%clk 0:01:16.7]} 29. b5 {[%clk 0:01:37.5]} 29...
Ne5 {[%clk 0:01:12.6]} 30. Qxa7 {[%clk 0:01:37.5]} 30... Rd2 {[%clk 0:01:05.8]}
31. Nf1 {[%clk 0:01:35.1]} 31... Rb2 {[%clk 0:01:04.3]} 32. Ng3 {[%clk
0:01:34.6]} 32... Qd7 {[%clk 0:00:59.5]} 33. Nxe4 {[%clk 0:01:32.4]} 33... Rxe2
{[%clk 0:00:56.5]} 34. Rxe2 {[%clk 0:01:22.7]} 34... Qd1+ {[%clk 0:00:56.5]} 35.
Kh2 {[%clk 0:01:22.9]} 35... Qxe2 {[%clk 0:00:56.9]} 36. Qb8+ {[%clk 0:01:12.3]}
36... Kh7 {[%clk 0:00:55.9]} 37. Qxb7 {[%clk 0:01:08.8]} 37... Qh5+ {[%clk
0:00:54.9]} 38. Kg1 {[%clk 0:01:06.5]} 38... Qd1+ {[%clk 0:00:54.6]} 39. Kh2
{[%clk 0:01:06.5]} 39... f5 {[%clk 0:00:47.7]} 40. Nc5 {[%clk 0:00:39.6]} 40...
Ng4+ {[%clk 0:00:40.1]} 41. Kg3 {[%clk 0:00:39.4]} 41... h5 {[%clk 0:00:38.1]}
0-1

[Event "Early-Titled-Tuesday-Blitz-June-18-2024"]
[Site "Chess.com"]
[Date "2024.06.18"]
[Round "3"]
[White "FXDon77"]
[Black "Likvidator228"]
[Result "1-0"]
[WhiteElo "2890"]
[BlackElo "2536"]
[TimeControl "180+1"]
[EndTime "8:29:18 PDT"]
[Termination "FXDon77 won by checkmate"]

1. e4 {[%clk 0:03:00.9]} 1... c5 {[%clk 0:02:59.3]} 2. Nf3 {[%clk 0:03:00.8]}
2... g6 {[%clk 0:02:58.5]} 3. c3 {[%clk 0:02:58.5]} 3... Bg7 {[%clk 0:02:57.3]}
4. d4 {[%clk 0:02:58.1]} 4... cxd4 {[%clk 0:02:58]} 5. cxd4 {[%clk 0:02:58.8]}
5... d5 {[%clk 0:02:58]} 6. e5 {[%clk 0:02:59.4]} 6... a6 {[%clk 0:02:57.9]} 7.
h3 {[%clk 0:02:58.6]} 7... Nc6 {[%clk 0:02:56.3]} 8. Nc3 {[%clk 0:02:56.3]} 8...
f6 {[%clk 0:02:56.2]} 9. Bf4 {[%clk 0:02:52.5]} 9... fxe5 {[%clk 0:02:56.5]} 10.
Nxe5 {[%clk 0:02:50.3]} 10... Nxe5 {[%clk 0:02:50.6]} 11. Bxe5 {[%clk
0:02:46.7]} 11... Bxe5 {[%clk 0:02:42.7]} 12. dxe5 {[%clk 0:02:45.7]} 12... e6
{[%clk 0:02:43.3]} 13. h4 {[%clk 0:02:39.8]} 13... Qc7 {[%clk 0:02:08.7]} 14.
Qe2 {[%clk 0:02:39.2]} 14... Ne7 {[%clk 0:02:05.5]} 15. h5 {[%clk 0:02:37.8]}
15... Bd7 {[%clk 0:02:05.7]} 16. g3 {[%clk 0:02:30.3]} 16... Qa5 {[%clk
0:01:41.8]} 17. Qd2 {[%clk 0:02:23.9]} 17... O-O-O {[%clk 0:01:37.2]} 18. Bg2
{[%clk 0:02:14.3]} 18... Kb8 {[%clk 0:01:35.2]} 19. O-O {[%clk 0:02:10]} 19...
gxh5 {[%clk 0:01:32.3]} 20. Qg5 {[%clk 0:02:01.7]} 20... Nc6 {[%clk 0:01:32.1]}
21. Rfe1 {[%clk 0:01:57.4]} 21... Be8 {[%clk 0:01:13.1]} 22. b4 {[%clk
0:01:43.7]} 22... Qxb4 {[%clk 0:01:09.3]} 23. Rec1 {[%clk 0:01:36.7]} 23... Bg6
{[%clk 0:01:02.8]} 24. Ne2 {[%clk 0:01:12.4]} 24... Qg4 {[%clk 0:00:50]} 25. Qe3
{[%clk 0:01:08.8]} 25... Rc8 {[%clk 0:00:43.7]} 26. Nf4 {[%clk 0:01:05.9]} 26...
Bf5 {[%clk 0:00:30.5]} 27. Qb6 {[%clk 0:00:58.4]} 27... h4 {[%clk 0:00:28.9]}
28. Bh3 {[%clk 0:00:55.1]} 28... Qg5 {[%clk 0:00:24.3]} 29. Bxf5 {[%clk
0:00:56]} 29... Qxf5 {[%clk 0:00:23.3]} 30. Rab1 {[%clk 0:00:53.6]} 30... Nd8
{[%clk 0:00:15.3]} 31. Qd6+ {[%clk 0:00:46.5]} 31... Ka7 {[%clk 0:00:13.7]} 32.
Rxc8 {[%clk 0:00:47.1]} 32... Qxb1+ {[%clk 0:00:13.4]} 33. Kg2 {[%clk
0:00:47.5]} 33... Qe4+ {[%clk 0:00:10.6]} 34. f3 {[%clk 0:00:42.9]} 34... h3+
{[%clk 0:00:07.2]} 35. Kxh3 {[%clk 0:00:37.7]} 35... Qxf3 {[%clk 0:00:06.4]} 36.
Qc5+ {[%clk 0:00:34.3]} 36... b6 {[%clk 0:00:06.6]} 37. Qc7+ {[%clk 0:00:34.9]}
37... Nb7 {[%clk 0:00:07.1]} 38. Qb8# {[%clk 0:00:35.8]} 1-0

[Event "Early-Titled-Tuesday-Blitz-June-18-2024"]
[Site "Chess.com"]
[Date "2024.06.18"]
[Round "3"]
[White "MVM2008"]
[Black "ChessFanNM"]
[Result "1-0"]
[WhiteElo "2579"]
[BlackElo "2313"]
[TimeControl "180+1"]
[EndTime "8:29:18 PDT"]
[Termination "MVM2008 won on time"]

1. e4 {[%clk 0:03:00.9]} 1... e5 {[%clk 0:02:57.1]} 2. f4 {[%clk 0:02:57.4]}
2... d5 {[%clk 0:02:54.9]} 3. d4 {[%clk 0:02:57.1]} 3... Nf6 {[%clk 0:02:35.4]}
4. dxe5 {[%clk 0:02:49.2]} 4... Nxe4 {[%clk 0:02:33.8]} 5. Nf3 {[%clk
0:02:49.1]} 5... Bg4 {[%clk 0:02:33.3]} 6. Bd3 {[%clk 0:02:41.7]} 6... Nc6
{[%clk 0:02:21.7]} 7. Nc3 {[%clk 0:02:39.7]} 7... Bb4 {[%clk 0:02:20.1]} 8. O-O
{[%clk 0:02:36.6]} 8... Bxc3 {[%clk 0:02:08.2]} 9. bxc3 {[%clk 0:02:33.4]} 9...
O-O {[%clk 0:02:04.7]} 10. Qe1 {[%clk 0:02:29.3]} 10... Ne7 {[%clk 0:01:43.7]}
11. Bxe4 {[%clk 0:02:10.2]} 11... dxe4 {[%clk 0:01:39.9]} 12. Qxe4 {[%clk
0:02:11.1]} 12... Bf5 {[%clk 0:01:35.2]} 13. Qe2 {[%clk 0:02:10.8]} 13... Qd5
{[%clk 0:01:32]} 14. Ba3 {[%clk 0:02:02.3]} 14... c5 {[%clk 0:01:24.7]} 15. Rad1
{[%clk 0:01:57.4]} 15... Qc6 {[%clk 0:01:19.7]} 16. Nh4 {[%clk 0:01:30.7]} 16...
Be4 {[%clk 0:01:01.4]} 17. Rd6 {[%clk 0:01:25.8]} 17... Qa4 {[%clk 0:00:55.6]}
18. Bxc5 {[%clk 0:01:18.6]} 18... Nc6 {[%clk 0:00:47.9]} 19. Rd2 {[%clk
0:00:45.6]} 19... Rfd8 {[%clk 0:00:46.7]} 20. Bd6 {[%clk 0:00:40.4]} 20... Rac8
{[%clk 0:00:26.6]} 21. Re1 {[%clk 0:00:32.9]} 21... Bg6 {[%clk 0:00:21.6]} 22.
e6 {[%clk 0:00:27.4]} 22... Re8 {[%clk 0:00:19.1]} 23. e7 {[%clk 0:00:18]} 23...
Qa6 {[%clk 0:00:14.9]} 24. Qg4 {[%clk 0:00:14]} 24... Qc4 {[%clk 0:00:13.2]} 25.
Qxc8 {[%clk 0:00:10.9]} 1-0

[Event "Early-Titled-Tuesday-Blitz-June-18-2024"]
[Site "Chess.com"]
[Date "2024.06.18"]
[Round "3"]
[White "WilliamAlfaroCaracas"]
[Black "maurovargas01"]
[Result "0-1"]
[WhiteElo "2337"]
[BlackElo "1943"]
[TimeControl "180+1"]
[EndTime "8:29:18 PDT"]
[Termination "maurovargas01 won on time"]

1. Nf3 {[%clk 0:03:00.9]} 1... Nc6 {[%clk 0:02:42.7]} 2. d4 {[%clk 0:02:33.8]}
2... g6 {[%clk 0:02:41.6]} 3. c4 {[%clk 0:02:29]} 3... Bg7 {[%clk 0:02:41.2]} 4.
Nc3 {[%clk 0:02:29.5]} 4... Nf6 {[%clk 0:02:40.9]} 5. d5 {[%clk 0:02:29]} 5...
Nb8 {[%clk 0:02:39.7]} 6. e4 {[%clk 0:02:28.4]} 6... d6 {[%clk 0:02:39.6]} 7.
Bd3 {[%clk 0:02:27.2]} 7... O-O {[%clk 0:02:39.5]} 8. h3 {[%clk 0:02:27.1]} 8...
Nbd7 {[%clk 0:02:38.8]} 9. O-O {[%clk 0:02:26.9]} 9... Nc5 {[%clk 0:02:36.7]}
10. Bc2 {[%clk 0:02:25.9]} 10... e5 {[%clk 0:02:35.8]} 11. b4 {[%clk 0:02:00]}
11... Ncd7 {[%clk 0:02:21.5]} 12. Be3 {[%clk 0:01:32.8]} 12... Nh5 {[%clk
0:02:20.8]} 13. c5 {[%clk 0:01:21.5]} 13... f5 {[%clk 0:02:19.9]} 14. Ng5 {[%clk
0:01:10.7]} 14... f4 {[%clk 0:02:08.5]} 15. Ne6 {[%clk 0:01:03.2]} 15... Qh4
{[%clk 0:02:00.7]} 16. Bd2 {[%clk 0:00:43]} 16... Rf7 {[%clk 0:01:49.5]} 17. Nb5
{[%clk 0:00:39.4]} 17... f3 {[%clk 0:01:37.6]} 18. Bg5 {[%clk 0:00:25.7]} 18...
Nf4 {[%clk 0:00:48.8]} 19. Bxh4 {[%clk 0:00:17.8]} 19... Ne2+ {[%clk 0:00:47.4]}
20. Kh2 {[%clk 0:00:15.4]} 20... dxc5 {[%clk 0:00:32.9]} 21. Nbxc7 {[%clk
0:00:12.2]} 21... Rb8 {[%clk 0:00:32.6]} 22. gxf3 {[%clk 0:00:11.6]} 22... Nf4
{[%clk 0:00:28.8]} 23. Nxf4 {[%clk 0:00:10.5]} 23... Rxf4 {[%clk 0:00:26.4]} 24.
Bg3 {[%clk 0:00:06.7]} 24... Rf7 {[%clk 0:00:25.3]} 25. bxc5 {[%clk 0:00:05.9]}
25... Nxc5 {[%clk 0:00:24.7]} 26. Nb5 {[%clk 0:00:03.9]} 26... a6 {[%clk
0:00:23.8]} 27. Nd6 {[%clk 0:00:03]} 27... Rc7 {[%clk 0:00:21.4]} 0-1

[Event "Early-Titled-Tuesday-Blitz-June-18-2024"]
[Site "Chess.com"]
[Date "2024.06.18"]
[Round "3"]
[White "rachidhuilda"]
[Black "Wizard_97"]
[Result "0-1"]
[WhiteElo "2400"]
[BlackElo "2724"]
[TimeControl "180+1"]
[EndTime "8:29:19 PDT"]
[Termination "Wizard_97 won by resignation"]

1. d4 {[%clk 0:03:00.9]} 1... Nf6 {[%clk 0:02:59.6]} 2. Bg5 {[%clk 0:03:00.2]}
2... Ne4 {[%clk 0:02:57.9]} 3. Bf4 {[%clk 0:03:00.2]} 3... d5 {[%clk 0:02:57.6]}
4. e3 {[%clk 0:03:00.1]} 4... c5 {[%clk 0:02:55.6]} 5. Bd3 {[%clk 0:02:54.2]}
5... cxd4 {[%clk 0:02:46.1]} 6. exd4 {[%clk 0:02:45.5]} 6... Nf6 {[%clk
0:02:45.1]} 7. Nf3 {[%clk 0:02:44.2]} 7... Nc6 {[%clk 0:02:45.6]} 8. c3 {[%clk
0:02:43.3]} 8... g6 {[%clk 0:02:45.8]} 9. O-O {[%clk 0:02:42.7]} 9... Bg7 {[%clk
0:02:45.5]} 10. Re1 {[%clk 0:02:42.8]} 10... O-O {[%clk 0:02:45.8]} 11. Nbd2
{[%clk 0:02:42.1]} 11... Nh5 {[%clk 0:02:46.3]} 12. Be3 {[%clk 0:02:41.1]} 12...
f5 {[%clk 0:02:46.9]} 13. g3 {[%clk 0:02:25.4]} 13... f4 {[%clk 0:02:45.7]} 14.
Bxf4 {[%clk 0:02:23.9]} 14... Nxf4 {[%clk 0:02:45.9]} 15. gxf4 {[%clk
0:02:24.5]} 15... Rxf4 {[%clk 0:02:46.6]} 16. Qe2 {[%clk 0:02:19.8]} 16... Bg4
{[%clk 0:02:44.1]} 17. Qe3 {[%clk 0:02:06.8]} 17... Qf8 {[%clk 0:02:38.1]} 18.
Ne5 {[%clk 0:01:52.9]} 18... Nxe5 {[%clk 0:02:34.8]} 19. dxe5 {[%clk 0:01:53.1]}
19... Bh6 {[%clk 0:02:26.1]} 20. Qc5 {[%clk 0:01:41.9]} 20... e6 {[%clk
0:02:15.2]} 21. Qxf8+ {[%clk 0:01:33.5]} 21... Raxf8 {[%clk 0:02:16.1]} 22. f3
{[%clk 0:01:00.4]} 22... Bxf3 {[%clk 0:01:50.4]} 23. Nxf3 {[%clk 0:01:01.3]}
23... Rxf3 {[%clk 0:01:51.3]} 24. Bf1 {[%clk 0:00:57]} 24... Rf2 {[%clk
0:01:39.9]} 25. Re2 {[%clk 0:00:52.8]} 25... Rxe2 {[%clk 0:01:38.3]} 26. Bxe2
{[%clk 0:00:52.6]} 26... Be3+ {[%clk 0:01:39]} 27. Kh1 {[%clk 0:00:50.8]} 27...
Rf2 {[%clk 0:01:39.6]} 28. Bg4 {[%clk 0:00:42.7]} 28... Kf7 {[%clk 0:01:39.8]}
29. Bh3 {[%clk 0:00:35.6]} 29... Bf4 {[%clk 0:01:28.8]} 30. Rf1 {[%clk
0:00:34.9]} 30... Rxh2+ {[%clk 0:01:27.8]} 31. Kg1 {[%clk 0:00:33.7]} 31... Rxh3
{[%clk 0:01:27.3]} 32. Rxf4+ {[%clk 0:00:33.7]} 32... Ke7 {[%clk 0:01:27.9]} 33.
Rb4 {[%clk 0:00:33.5]} 33... b6 {[%clk 0:01:26.2]} 34. a4 {[%clk 0:00:33.7]}
34... Rh5 {[%clk 0:01:23.4]} 35. a5 {[%clk 0:00:33.6]} 35... Rxe5 {[%clk
0:01:22.1]} 36. axb6 {[%clk 0:00:33.4]} 36... axb6 {[%clk 0:01:23]} 37. Rxb6
{[%clk 0:00:34]} 37... h5 {[%clk 0:01:23.3]} 38. Rb7+ {[%clk 0:00:32.3]} 38...
Kf6 {[%clk 0:01:22.8]} 39. Kf2 {[%clk 0:00:31.3]} 39... h4 {[%clk 0:01:21.4]}
40. b4 {[%clk 0:00:31]} 40... Rf5+ {[%clk 0:01:21.9]} 41. Ke3 {[%clk 0:00:30.4]}
41... h3 {[%clk 0:01:20.1]} 42. Ra7 {[%clk 0:00:24]} 42... h2 {[%clk 0:01:15.4]}
43. Ra1 {[%clk 0:00:24.3]} 43... Rh5 {[%clk 0:01:16]} 44. Rh1 {[%clk 0:00:24.1]}
44... Ke5 {[%clk 0:01:16.7]} 45. Kf3 {[%clk 0:00:22]} 45... Kd6 {[%clk
0:01:16.9]} 46. Kg2 {[%clk 0:00:17.4]} 46... e5 {[%clk 0:01:16.1]} 47. Rxh2
{[%clk 0:00:15.2]} 47... Rxh2+ {[%clk 0:01:17]} 48. Kxh2 {[%clk 0:00:16]} 48...
Kc6 {[%clk 0:01:10.7]} 49. Kg3 {[%clk 0:00:16]} 49... Kb5 {[%clk 0:01:11]} 50.
Kf3 {[%clk 0:00:15.7]} 50... g5 {[%clk 0:01:08.5]} 51. Ke3 {[%clk 0:00:15.4]}
51... g4 {[%clk 0:01:08.7]} 52. Kf2 {[%clk 0:00:15.6]} 52... d4 {[%clk
0:01:08.6]} 53. cxd4 {[%clk 0:00:15]} 53... exd4 {[%clk 0:01:09.5]} 54. Kg3
{[%clk 0:00:12.1]} 54... Kxb4 {[%clk 0:01:10.4]} 55. Kxg4 {[%clk 0:00:12.7]}
55... Kc3 {[%clk 0:01:10.3]} 0-1

[Event "Early-Titled-Tuesday-Blitz-June-18-2024"]
[Site "Chess.com"]
[Date "2024.06.18"]
[Round "3"]
[White "sirinbaba33"]
[Black "Muifel"]
[Result "0-1"]
[WhiteElo "2183"]
[BlackElo "2446"]
[TimeControl "180+1"]
[EndTime "8:29:19 PDT"]
[Termination "Muifel won by resignation"]

1. e4 {[%clk 0:03:00.9]} 1... e5 {[%clk 0:02:59.8]} 2. Nf3 {[%clk 0:03:01]} 2...
d5 {[%clk 0:02:59.9]} 3. Nxe5 {[%clk 0:02:45.9]} 3... Bd6 {[%clk 0:02:59.1]} 4.
d4 {[%clk 0:02:42.1]} 4... dxe4 {[%clk 0:02:56.9]} 5. Nc4 {[%clk 0:02:40.9]}
5... Be7 {[%clk 0:02:56.5]} 6. Be2 {[%clk 0:02:30.2]} 6... Nf6 {[%clk
0:02:55.8]} 7. O-O {[%clk 0:02:30.2]} 7... O-O {[%clk 0:02:55.7]} 8. c3 {[%clk
0:02:30]} 8... Nbd7 {[%clk 0:02:45.8]} 9. Re1 {[%clk 0:02:28.2]} 9... Nb6 {[%clk
0:02:36.5]} 10. Ne5 {[%clk 0:02:28]} 10... c5 {[%clk 0:02:28.8]} 11. Bg5 {[%clk
0:02:00.3]} 11... cxd4 {[%clk 0:02:26.8]} 12. cxd4 {[%clk 0:02:01]} 12... h6
{[%clk 0:02:22.9]} 13. Bh4 {[%clk 0:01:50.8]} 13... Bf5 {[%clk 0:02:18.6]} 14.
Nc3 {[%clk 0:01:50.4]} 14... Nfd5 {[%clk 0:02:03.5]} 15. Bxe7 {[%clk 0:01:22]}
15... Qxe7 {[%clk 0:01:59.5]} 16. Bg4 {[%clk 0:01:07.3]} 16... Bxg4 {[%clk
0:01:58.5]} 17. Qxg4 {[%clk 0:01:08.2]} 17... f5 {[%clk 0:01:57.6]} 18. Qh5
{[%clk 0:01:05.4]} 18... Rf6 {[%clk 0:01:43.9]} 19. f3 {[%clk 0:01:04.1]} 19...
Nf4 {[%clk 0:01:22]} 20. Qh4 {[%clk 0:01:04]} 20... g5 {[%clk 0:01:20.7]} 21.
Qg3 {[%clk 0:00:53.1]} 21... Qb4 {[%clk 0:01:09.7]} 22. Qf2 {[%clk 0:00:45.5]}
22... Rd8 {[%clk 0:00:52.4]} 23. Rad1 {[%clk 0:00:44]} 23... exf3 {[%clk
0:00:41.7]} 24. Nxf3 {[%clk 0:00:37]} 24... Nc4 {[%clk 0:00:35.9]} 25. d5 {[%clk
0:00:10.9]} 25... Nxb2 {[%clk 0:00:26]} 26. Rb1 {[%clk 0:00:05.9]} 26... Qxc3
{[%clk 0:00:24.2]} 27. Qxb2 {[%clk 0:00:03.3]} 27... Qxb2 {[%clk 0:00:23.6]} 28.
Rxb2 {[%clk 0:00:04.2]} 28... Nd3 {[%clk 0:00:23.4]} 29. Rxb7 {[%clk 0:00:04.7]}
29... Nxe1 {[%clk 0:00:23.4]} 30. Nxe1 {[%clk 0:00:05.6]} 30... Rxd5 {[%clk
0:00:22.6]} 31. Nf3 {[%clk 0:00:06.5]} 31... Ra5 {[%clk 0:00:20.7]} 0-1